bitfinex/quotes_ETHUSD_20250703
["timestamp","ask_amount","ask_price","bid_price","bid_amount"]
[1751531541248,0.55,2601.5,2600.9,0.7598]
[1751531541451,0.192,2601.1,2600.9,0.7598]
[1751531542353,0.192,2601.1,2600.7,18.8063]
[1751531542659,0.192,2601.1,2600.7,10.9903]
[1751531543238,0.192,2601.1,2600.8,2.99593]
[1751531548937,0.7967,2601.6,2600.8,2.99593]
[1751531549143,0.192,2601.4,2600.9,0.192]
[1751531552172,0.8311,2601.3,2600.9,0.192]
[1751531552577,0.192,2601.1,2600.8,7.809]
[1751531552778,0.192,2601.1,2600.8,10.8323692]
[1751531553078,0.192,2601.1,2600.8,10.8313692]
[1751531558850,0.192,2601.1,2600.8,7.805]
[1751531560197,0.192,2601.1,2600.7,17.995]
[1751531560878,0.192,2601.1,2600.8,0.8091]
[1751531561079,0.802,2601.5,2600.8,0.8091]
[1751531561291,0.192,2601.4,2600.9,10.192]
[1751531561451,0.192,2601.4,2601.0,1.81042458]
[1751531565360,0.802,2601.5,2601.0,1.81042458]
[1751531565567,0.994,2601.5,2601.0,2.00242458]
[1751531566591,0.994,2601.5,2601.1,10.0]
[1751531568190,0.192,2601.5,2601.1,10.0]
[1751531568390,0.192,2601.5,2601.2,2.74394246]
[1751531569581,0.02,2601.7,2601.3,17.801]
[1751531569902,0.02,2601.7,2601.4,0.192]
[1751531570227,0.02,2601.7,2601.5,0.192]
[1751531580903,0.02,2601.7,2601.3,10.0]
[1751531581125,0.212,2601.7,2601.3,10.0]
[1751531581326,0.212,2601.7,2601.2,11.87554246]
[1751531581327,0.212,2601.7,2601.2,0.192]
[1751531581512,0.192,2601.5,2601.1,0.192]
[1751531582093,0.8063,2601.5,2600.9,10.0]
[1751531582313,7.10314581,2601.6,2600.8,0.202]
[1751531582314,7.90944581,2601.1,2600.8,0.202]
[1751531582592,0.192,2600.9,2600.8,0.01]
[1751531584828,8.07224581,2600.9,2600.8,0.01]
[1751531585934,0.9691,2600.9,2600.8,0.01]
[1751531586128,1.77632458,2600.9,2600.8,0.01]
[1751531588342,0.9691,2600.9,2600.8,0.01]
[1751531590441,5.36392294,2600.9,2600.8,0.01]
[1751531590746,15.36392294,2600.9,2600.8,0.01]
[1751531591913,39.89524165,2600.9,2600.8,0.01]
[1751531592410,39.00994694,2600.9,2600.8,0.01]
[1751531596346,25.07692294,2600.9,2600.8,0.01]
[1751531599946,21.2321,2600.9,2600.8,0.01]
[1751531600112,13.4261,2600.9,2600.8,0.01]
[1751531600324,21.2351,2600.9,2600.8,0.01]
[1751531600856,21.2321,2600.9,2600.8,0.01]
[1751531601035,23.03577333,2600.9,2600.8,0.01]
[1751531601236,21.2321,2600.9,2600.8,0.01]
[1751531602959,21.2341,2600.9,2600.8,0.01]
[1751531604445,25.07892294,2600.9,2600.8,0.01]
[1751531608650,21.2341,2600.9,2600.8,0.01]
[1751531609273,21.2311,2600.9,2600.8,0.01]
[1751531611062,25.07592294,2600.9,2600.8,0.01]
[1751531612365,25.97500679,2600.9,2600.8,0.01]
[1751531612540,22.13018385,2600.9,2600.8,0.01]
[1751531612731,25.07592294,2600.9,2600.8,0.01]
[1751531613372,25.97537314,2600.9,2600.8,0.01]
[1751531614470,12.4185502,2600.9,2600.8,0.01]
[1751531614767,21.2281,2600.9,2600.8,0.01]
[1751531618276,11.5191,2600.9,2600.8,0.01]
[1751531618443,21.2281,2600.9,2600.8,0.01]
[1751531618643,23.93243798,2600.9,2600.8,0.01]
[1751531618838,25.97358788,2600.9,2600.8,0.01]
[1751531625981,33.07673369,2600.9,2600.8,0.01]
[1751531626157,18.19581075,2600.9,2600.8,0.01]
[1751531626362,31.75063369,2600.9,2600.8,0.01]
[1751531626556,32.30063369,2600.9,2600.8,0.01]
[1751531627582,33.07823369,2600.9,2600.8,0.01]
[1751531627981,29.23341075,2600.9,2600.8,0.01]
[1751531628182,1.09266494,2600.9,2600.8,0.01]
[1751531628501,0.192,2600.9,2600.8,0.01]
[1751531629651,0.192,2600.9,2600.8,0.8381]
[1751531648628,0.192,2600.9,2600.8,0.01]
[1751531651133,15.88584581,2600.9,2600.8,0.01]
[1751531651513,0.192,2600.9,2600.8,0.01]
[1751531653004,0.192,2600.9,2600.8,0.8102]
[1751531653327,0.192,2600.9,2600.8,0.01]
[1751531656426,0.742,2600.9,2600.8,0.01]
[1751531656924,0.192,2600.9,2600.8,0.01]
[1751531657324,0.192,2600.9,2600.8,0.8244]
[1751531658144,0.192,2600.9,2600.8,0.01]
[1751531682876,0.192,2600.9,2600.8,0.7855]
[1751531686895,8.07014581,2600.9,2600.8,0.01]
[1751531687100,7.87814581,2600.9,2600.8,0.01]
[1751531687285,1.67648902,2601.1,2600.8,0.01]
[1751531687674,0.7758,2601.1,2600.8,0.01]
[1751531687880,7.8,2601.0,2600.8,0.01]
[1751531693902,0.7994,2601.3,2600.8,0.01]
[1751531694109,9.705,2601.2,2600.8,0.01]
[1751531694612,1.3616,2600.9,2600.8,0.01]
[1751531694773,9.1616,2600.9,2600.8,0.01]
[1751531694976,13.90711444,2600.9,2600.8,0.01]
[1751531695172,10.0622915,2600.9,2600.8,0.01]
[1751531696273,9.1616,2600.9,2600.8,0.01]
[1751531696475,0.55,2601.1,2600.8,0.01]
[1751531696805,7.8,2601.0,2600.8,0.01]
[1751531698501,7.8,2601.0,2600.8,0.8095]
[1751531698811,7.8,2601.1,2600.8,0.8095]
[1751531699111,0.192,2600.9,2600.8,0.8095]
[1751531699516,7.8,2601.3,2600.8,0.8095]
[1751531699817,0.192,2601.2,2600.8,1.0015]
[1751531702209,0.192,2601.2,2600.9,0.799]
[1751531704417,0.192,2601.4,2600.9,0.991]
[1751531707013,0.192,2601.4,2601.1,0.8163]
[1751531712534,0.02,2601.5,2601.2,0.192]
[1751531713402,0.02,2601.5,2601.3,0.7515]
[1751531714336,0.02,2601.5,2601.3,10.7515]
[1751531714545,0.02,2601.5,2601.4,0.9863]
[1751531714832,0.02,2601.5,2601.4,0.7943]
[1751531722448,0.02,2601.5,2601.2,0.192]
[1751531722649,0.02,2601.5,2600.9,10.7918]
[1751531722830,0.192,2601.4,2600.9,10.9938]
[1751531723814,0.02,2601.5,2600.9,0.01]
[1751531724020,0.9518,2601.3,2600.9,0.01]
[1751531725561,0.192,2601.3,2600.9,0.01]
[1751531735248,0.7545,2601.2,2600.9,0.01]
[1751531735548,0.192,2601.1,2600.9,0.01]
[1751531736349,0.7545,2601.2,2600.9,0.01]
[1751531736572,0.78576458,2601.1,2600.9,0.01]
[1751531738776,8.40624581,2601.0,2600.9,0.01]
[1751531738947,12.25092093,2601.0,2600.9,0.01]
[1751531739346,8.40624581,2601.0,2600.9,0.01]
[1751531744873,1.3031,2601.0,2600.9,0.01]
[1751531750577,8.40624581,2601.0,2600.9,0.01]
[1751531756000,7.85624581,2601.0,2600.9,0.01]
[1751531757006,18.40624581,2601.0,2600.9,0.01]
[1751531757174,18.40624581,2601.0,2600.8,0.01]
[1751531757175,15.41792294,2600.9,2600.8,0.01]
[1751531757369,15.41792294,2600.9,2600.4,0.01]
[1751531757370,14.39541434,2600.5,2600.4,0.01]
[1751531757602,46.16153203,2600.4,2600.3,0.01]
[1751531758594,22.51550803,2600.4,2600.3,0.01]
[1751531760506,18.66994581,2600.4,2600.3,0.01]
[1751531760806,22.51550803,2600.4,2600.3,0.01]
[1751531761109,18.66994581,2600.4,2600.3,0.01]
[1751531761296,22.51550803,2600.4,2600.3,0.01]
[1751531761500,18.66994581,2600.4,2600.3,0.01]
[1751531762084,11.5668,2600.4,2600.3,0.01]
[1751531762286,2.095,2600.4,2600.3,0.01]
[1751531762493,9.893,2600.4,2600.3,0.01]
[1751531762805,10.443,2600.4,2600.3,0.01]
[1751531763887,0.742,2600.4,2600.3,0.01]
[1751531764222,8.54,2600.4,2600.3,0.01]
[1751531764785,19.344,2600.4,2600.3,0.01]
[1751531765298,11.546,2600.4,2600.3,0.01]
[1751531765500,21.247,2600.4,2600.3,0.01]
[1751531770018,13.449,2600.4,2600.3,0.01]
[1751531770324,21.268,2600.4,2600.3,0.01]
[1751531770721,23.07167333,2600.4,2600.3,0.01]
[1751531770926,20.464,2600.4,2600.3,0.01]
[1751531771220,10.464,2600.4,2600.3,0.01]
[1751531773311,0.762,2600.4,2600.3,0.01]
[1751531773515,10.464,2600.4,2600.3,0.01]
[1751531776023,20.464,2600.4,2600.3,0.01]
[1751531777531,24.30956222,2600.4,2600.3,0.01]
[1751531778300,20.464,2600.4,2600.3,0.01]
[1751531782040,10.464,2600.4,2600.3,0.01]
[1751531787528,11.36934924,2600.4,2600.3,0.01]
[1751531788247,15.21491146,2600.4,2600.3,0.01]
[1751531788949,26.03691146,2600.4,2600.3,0.01]
[1751531789151,49.68293546,2600.4,2600.3,0.01]
[1751531789368,15.15340178,2599.9,2599.8,0.01]
[1751531789552,23.85675102,2599.9,2599.8,0.01]
[1751531789720,30.95989683,2599.9,2599.8,0.01]
[1751531791634,27.11359505,2599.9,2599.8,0.01]
[1751531792155,8.348,2599.9,2599.8,0.01]
[1751531792324,1.902,2599.9,2599.8,0.01]
[1751531792657,9.7,2599.9,2599.8,0.01]
[1751531793020,1.902,2599.9,2599.8,0.01]
[1751531793224,0.55,2600.2,2599.8,0.01]
[1751531793425,7.798,2600.1,2599.8,0.01]
[1751531795239,0.192,2599.9,2599.8,0.01]
[1751531799671,9.7,2600.2,2599.8,0.01]
[1751531799836,0.192,2600.0,2599.8,0.01]
[1751531801573,0.192,2600.0,2599.9,0.8233]
[1751531803175,0.02,2600.3,2599.9,0.8233]
[1751531803381,0.02,2600.3,2599.9,1.0153]
[1751531803542,0.02,2600.3,2600.1,0.7506]
[1751531811657,0.02,2600.3,2599.9,0.192]
[1751531811958,0.55,2600.1,2599.8,0.01]
[1751531812194,7.10314581,2599.9,2599.8,0.01]
[1751531812879,22.86402732,2599.9,2599.8,0.01]
[1751531813209,10.0,2599.6,2598.9,0.2168874]
[1751531813364,7.10314581,2599.1,2598.9,0.2168874]
[1751531813690,14.89914581,2599.1,2598.9,0.2168874]
[1751531814093,0.55,2599.0,2598.9,0.2168874]
[1751531814395,5.1641337,2599.0,2598.9,0.2168874]
[1751531814900,14.39792981,2598.8,2598.0,0.8135]
[1751531815066,23.40307562,2598.8,2598.0,0.8135]
[1751531815784,16.29992981,2598.8,2598.0,0.8135]
[1751531816970,24.09992981,2598.8,2598.0,0.8135]
[1751531817169,24.09992981,2598.8,2598.6,0.01]
[1751531823117,20.252,2598.8,2598.6,0.01]
[1751531826020,20.253,2598.8,2598.6,0.01]
[1751531830613,20.255,2598.8,2598.6,0.01]
[1751531835918,27.37533712,2598.8,2598.6,0.01]
[1751531837027,0.192,2598.8,2598.6,0.7784]
[1751531837235,7.12033712,2599.2,2598.6,0.7784]
[1751531837403,0.192,2598.9,2598.6,0.7784]
[1751531837595,7.801,2599.0,2598.8,0.7684]
[1751531837930,7.801,2599.1,2598.8,0.9604]
[1751531839193,7.801,2599.1,2598.8,0.7684]
[1751531839194,7.12033712,2598.9,2598.8,0.7684]
[1751531839390,0.192,2598.8,2598.6,0.7736]
[1751531839993,0.742,2598.8,2598.6,0.01]
[1751531840222,1.5708,2598.8,2598.6,0.01]
[1751531842037,12.67935333,2598.8,2598.6,0.01]
[1751531842441,9.895,2598.8,2598.6,0.01]
[1751531843346,9.896,2598.8,2598.6,0.01]
[1751531844748,9.897,2598.8,2598.6,0.01]
[1751531846834,10.447,2598.8,2598.6,0.01]
[1751531847438,11.36578334,2598.8,2598.6,0.01]
[1751531851554,11.36589978,2598.8,2598.6,0.01]
[1751531851732,11.36589978,2598.8,2598.3,0.7771]
[1751531852417,11.36589978,2598.8,2598.2,0.776]
[1751531852955,12.13369978,2598.8,2598.2,0.776]
[1751531855427,11.36589978,2598.8,2598.2,0.776]
[1751531858072,11.36489978,2598.8,2598.2,0.776]
[1751531860364,10.81489978,2598.8,2598.2,0.776]
[1751531861174,9.896,2598.8,2598.2,0.776]
[1751531861336,2.095,2598.8,2598.2,0.776]
[1751531861537,9.896,2598.8,2598.6,0.8071]
[1751531861737,17.01704353,2598.8,2598.3,0.8071]
[1751531863371,17.93602123,2598.8,2598.3,0.8071]
[1751531863971,17.01704353,2598.8,2598.3,0.8071]
[1751531864555,17.93606725,2598.8,2598.3,0.8071]
[1751531864980,7.31304353,2598.8,2598.3,0.8071]
[1751531865145,9.896,2598.8,2598.7,0.7847]
[1751531865492,9.896,2598.8,2598.7,0.01]
[1751531865493,11.2611,2598.8,2598.7,0.01]
[1751531865942,0.742,2598.8,2598.7,0.01]
[1751531866275,10.446,2598.8,2598.7,0.01]
[1751531868382,1.66156442,2598.8,2598.7,0.01]
[1751531868582,10.446,2598.8,2598.7,0.01]
[1751531868748,11.36556442,2598.8,2598.7,0.01]
[1751531869575,1.11156442,2598.8,2598.7,0.01]
[1751531869781,9.896,2598.8,2598.7,0.01]
[1751531870649,10.81642016,2598.8,2598.7,0.01]
[1751531871980,10.81642056,2598.8,2598.7,0.01]
[1751531873281,17.01704353,2598.8,2598.7,0.01]
[1751531873853,17.93745619,2598.8,2598.7,0.01]
[1751531874301,8.23345619,2598.8,2598.7,0.01]
[1751531874508,0.192,2598.8,2598.7,0.01]
[1751531874655,17.01704353,2598.8,2598.7,0.01]
[1751531875004,17.74546632,2598.8,2598.7,0.01]
[1751531880186,16.82504353,2598.8,2598.7,0.01]
[1751531882389,17.7454815,2598.8,2598.7,0.01]
[1751531884162,8.0414815,2598.8,2598.7,0.01]
[1751531884390,16.82304353,2598.8,2598.7,0.01]
[1751531885603,17.74346196,2598.8,2598.7,0.01]
[1751531888194,8.04146196,2598.8,2598.7,0.01]
[1751531888384,16.82404353,2598.8,2598.7,0.01]
[1751531890172,21.22197334,2598.8,2598.7,0.01]
[1751531890484,22.01587334,2598.8,2598.7,0.01]
[1751531890828,22.9362874,2598.8,2598.7,0.01]
[1751531892700,19.08835759,2598.8,2598.7,0.01]
[1751531893978,18.29445759,2598.8,2598.7,0.01]
[1751531895021,22.1423874,2598.8,2598.7,0.01]
[1751531895519,18.29445759,2598.8,2598.7,0.01]
[1751531896919,22.1423874,2598.8,2598.7,0.01]
[1751531898432,22.9639874,2598.8,2598.7,0.01]
[1751531898607,4.39807788,2598.7,2598.6,0.01]
[1751531898941,17.74445759,2598.7,2598.6,0.01]
[1751531899228,22.14253547,2598.7,2598.6,0.01]
[1751531901524,18.29445759,2598.7,2598.6,0.01]
[1751531901723,22.14253547,2598.7,2598.6,0.01]
[1751531902426,18.29445759,2598.7,2598.6,0.01]
[1751531902626,22.14253547,2598.7,2598.6,0.01]
[1751531908722,32.14253547,2598.7,2598.6,0.01]
[1751531911626,17.74345759,2598.7,2598.6,0.01]
[1751531913802,16.82304353,2598.7,2598.6,0.01]
[1751531913997,20.67112141,2598.7,2598.6,0.01]
[1751531914242,17.74208003,2598.7,2598.6,0.01]
[1751531914544,22.14015791,2598.7,2598.6,0.01]
[1751531915114,32.14015791,2598.7,2598.6,0.01]
[1751531915312,7.12104353,2598.2,2597.9,0.7665]
[1751531915504,7.8,2598.1,2597.9,0.7665]
[1751531915705,7.8,2598.3,2597.9,0.192]
[1751531916031,0.192,2598.4,2598.0,0.7665]
[1751531916231,7.8,2598.3,2598.0,0.7665]
[1751531917434,7.12104353,2598.2,2598.0,0.7665]
[1751531917730,7.31304353,2598.2,2598.0,0.7665]
[1751531922325,0.192,2598.2,2598.0,0.7665]
[1751531925414,7.12104353,2598.1,2597.8,0.7593]
[1751531925742,7.8,2598.1,2597.8,0.7593]
[1751531928245,0.192,2598.2,2597.8,0.7593]
[1751531928549,7.992,2598.2,2597.8,0.7593]
[1751531928921,0.192,2598.2,2597.8,0.7593]
[1751531929110,7.992,2598.2,2597.8,0.7593]
[1751531930945,0.192,2598.2,2597.8,0.7593]
[1751531931956,0.192,2598.2,2597.8,0.74696]
[1751531939751,7.991,2598.2,2597.8,0.74696]
[1751531939955,7.12104353,2598.0,2597.8,0.74696]
[1751531940458,15.11204353,2598.2,2597.8,0.74696]
[1751531951035,7.12104353,2598.0,2597.8,0.74696]
[1751531951368,15.11104353,2598.0,2597.8,0.74696]
[1751531952751,15.11104353,2598.0,2597.6,0.84]
[1751531953471,15.11104353,2598.0,2597.6,0.83]
[1751531956364,7.99,2598.0,2597.6,0.83]
[1751531963268,7.797,2597.9,2597.6,0.83]
[1751531964040,0.192,2598.0,2597.6,0.83]
[1751531964241,7.797,2598.0,2597.6,0.83]
[1751531964570,7.797,2598.0,2597.7,0.192]
[1751531965269,14.91804353,2598.0,2597.6,0.83]
[1751531965473,15.13004353,2598.0,2597.6,0.83]
[1751531974291,8.009,2598.0,2597.6,0.83]
[1751531975388,0.212,2598.0,2597.6,0.83]
[1751531975594,7.816,2598.0,2597.7,0.192]
[1751531978259,14.93704353,2598.0,2597.7,0.192]
[1751531978995,7.816,2598.0,2597.7,0.192]
[1751531982191,7.816,2598.0,2597.7,0.1697]
[1751531983795,13.51387412,2598.0,2597.7,0.1697]
[1751531984694,5.71787412,2598.0,2597.7,0.1697]
[1751531989801,0.02,2598.0,2597.7,0.1697]
[1751531990001,0.02,2598.0,2597.8,0.7951]
[1751531990178,0.02,2598.0,2597.9,15.88987412]
[1751531990499,0.02,2598.0,2597.9,13.96103471]
[1751531990709,0.02,2598.0,2597.9,10.9871]
[1751532001441,0.02,2598.0,2597.9,0.192]
[1751532001606,0.02,2598.0,2597.7,0.192]
[1751532001607,7.13942998,2598.0,2597.7,0.192]
[1751532002627,7.13942998,2598.0,2597.5,0.7695]
[1751532002944,7.33142998,2598.0,2597.5,0.9615]
[1751532003736,7.33142998,2598.0,2597.5,0.192]
[1751532004708,0.212,2598.0,2597.5,0.192]
[1751532006017,8.003,2598.0,2597.5,0.192]
[1751532008319,0.212,2598.0,2597.5,0.192]
[1751532008527,7.811,2598.0,2597.6,0.801]
[1751532008724,7.811,2598.0,2597.7,0.192]
[1751532010547,0.02,2598.0,2597.7,0.192]
[1751532010925,7.811,2598.0,2597.7,0.192]
[1751532011819,0.02,2598.0,2597.7,0.192]
[1751532012148,7.811,2598.0,2597.7,0.192]
[1751532013653,0.02,2598.0,2597.7,0.192]
[1751532013852,7.811,2598.0,2597.7,0.192]
[1751532015168,0.02,2598.0,2597.7,0.192]
[1751532015374,7.811,2598.0,2597.7,0.192]
[1751532021174,7.711,2598.0,2597.7,0.192]
[1751532023372,8.09742998,2598.2,2597.7,0.192]
[1751532023555,7.79,2598.1,2597.7,0.192]
[1751532024777,8.09742998,2598.2,2597.7,0.192]
[1751532024778,0.978,2598.2,2597.7,0.192]
[1751532024978,7.79,2598.0,2597.7,0.192]
[1751532026372,7.79,2598.0,2597.6,0.01]
[1751532026373,10.96890424,2597.8,2597.6,0.01]
[1751532026674,2.6847,2597.7,2597.6,0.01]
[1751532026889,6.53425922,2597.7,2597.6,0.01]
[1751532027029,7.08425922,2597.7,2597.6,0.01]
[1751532027234,14.87325922,2597.7,2597.6,0.01]
[1751532027469,5.18525922,2597.7,2597.6,0.01]
[1751532027677,14.87325922,2597.7,2597.6,0.01]
[1751532027876,11.0237,2597.7,2597.6,0.01]
[1751532028779,0.7857,2597.7,2597.6,0.01]
[1751532028950,10.4747,2597.7,2597.6,0.01]
[1751532029151,8.5757,2597.7,2597.6,0.01]
[1751532029338,10.4747,2597.7,2597.6,0.01]
[1751532030640,0.7857,2597.7,2597.6,0.01]
[1751532030866,10.4727,2597.7,2597.6,0.01]
[1751532035841,9.687,2597.7,2597.6,0.01]
[1751532040791,0.192,2597.8,2597.6,0.01]
[1751532041084,7.809,2598.0,2597.7,0.8047]
[1751532041285,8.001,2598.0,2597.7,0.8047]
[1751532044090,7.789,2597.9,2597.7,0.8047]
[1751532046579,0.02,2598.0,2597.7,0.8047]
[1751532046780,0.02,2598.0,2597.9,0.7818]
[1751532047583,0.02,2598.0,2597.9,2.26412743]
[1751532054704,0.02,2598.0,2597.9,0.7818]
[1751532067746,0.02,2598.0,2597.8,0.192]
[1751532069950,0.02,2598.0,2597.8,10.192]
[1751532075449,0.02,2598.0,2597.9,0.8298]
[1751532080562,0.02,2598.0,2597.8,10.192]
[1751532080721,0.02,2598.0,2597.9,1.873]
[1751532081839,0.02,2598.0,2597.9,19.656]
[1751532083378,0.02,2598.9,2598.5,3.84829526]
[1751532083581,0.02,2598.9,2598.8,7.11942998]
[1751532083748,0.02,2598.9,2598.8,17.49056298]
[1751532083949,0.02,2598.9,2598.8,18.45246298]
[1751532084278,0.02,2598.9,2598.8,11.333033]
[1751532086358,0.02,2598.9,2598.8,11.62741412]
[1751532091965,0.02,2598.9,2598.8,3.07551412]
[1751532092160,0.02,2598.9,2598.8,18.26638112]
[1751532093666,0.02,2598.9,2598.8,10.48638112]
[1751532093872,0.02,2598.9,2598.8,18.26538112]
[1751532094790,0.02,2598.9,2598.8,26.1547111]
[1751532094975,0.02,2598.9,2598.8,29.15499534]
[1751532095291,0.02,2598.9,2598.8,33.00292515]
[1751532095659,0.212,2599.7,2599.1,0.7612]
[1751532095959,0.02,2599.7,2599.4,7.11942998]
[1751532096161,0.02,2599.7,2599.6,0.192]
[1751532100520,0.02,2599.7,2599.4,7.97]
[1751532102412,0.8117,2599.6,2599.1,10.0]
[1751532102612,0.8117,2599.6,2599.2,0.192]
[1751532107731,0.8117,2599.6,2598.9,11.893]
[1751532107903,1.0037,2599.6,2599.1,0.192]
[1751532108435,0.192,2599.3,2598.8,0.192]
[1751532108650,0.7865,2599.2,2598.8,0.192]
[1751532108933,0.7865,2599.2,2598.8,1.99]
[1751532111812,0.7865,2599.2,2598.6,0.01]
[1751532112136,0.7826,2598.9,2598.6,0.01]
[1751532115519,0.9844,2599.0,2598.6,10.01]
[1751532115719,0.7924,2599.0,2598.7,1.921443]
[1751532115916,0.7924,2599.0,2598.7,2.113443]
[1751532121645,0.9463,2599.2,2598.7,2.113443]
[1751532123834,0.9463,2599.2,2599.0,0.41644]
[1751532127657,20.9463,2599.2,2599.0,0.41644]
[1751532130632,20.9663,2599.2,2599.0,0.41644]
[1751532131260,0.8194,2599.1,2599.0,0.41644]
[1751532132036,0.8194,2599.1,2598.6,0.202]
[1751532132230,0.192,2599.0,2598.6,0.202]
[1751532133459,0.7659,2598.9,2598.6,0.202]
[1751532134032,0.192,2599.0,2598.6,0.202]
[1751532134232,0.192,2599.0,2598.6,0.44081166]
[1751532142999,0.02,2599.1,2598.7,0.757]
[1751532143201,0.02,2599.1,2598.7,0.949]
[1751532160020,0.02,2599.1,2598.7,0.949]
[1751532167097,0.02,2599.1,2598.9,7.11942998]
[1751532167289,0.02,2599.1,2599.0,11.0068]
[1751532167594,16.26641173,2599.2,2599.1,0.8148]
[1751532167801,16.26641173,2599.2,2599.1,25.70922998]
[1751532168118,16.26641173,2599.2,2599.1,25.90122998]
[1751532170427,16.26641173,2599.2,2599.1,18.7818]
[1751532170600,16.26641173,2599.2,2599.1,21.93796257]
[1751532173106,16.26641173,2599.2,2599.1,25.78544823]
[1751532173816,4.69605268,2599.2,2599.1,25.78544823]
[1751532175448,4.69605268,2599.2,2599.1,26.33544823]
[1751532175449,0.80713406,2599.2,2599.1,26.33544823]
[1751532175622,0.02,2599.6,2599.5,10.82]
[1751532175805,0.02,2599.6,2599.5,27.75585267]
[1751532176815,0.02,2599.6,2599.5,31.6027463]
[1751532180410,0.02,2599.6,2599.5,32.1527463]
[1751532184665,0.02,2599.6,2599.5,36.8727463]
[1751532192574,0.02,2599.6,2599.5,29.0997463]
[1751532192748,0.02,2599.6,2599.5,38.7597463]
[1751532195113,0.02,2599.6,2599.5,29.0997463]
[1751532195252,0.02,2599.6,2599.5,38.7587463]
[1751532197282,0.02,2599.6,2599.5,41.81993445]
[1751532199785,0.02,2599.6,2599.5,32.16093445]
[1751532199989,0.02,2599.6,2599.5,41.81893445]
[1751532201363,0.02,2599.6,2599.5,38.7577463]
[1751532201563,0.02,2599.6,2599.5,29.0997463]
[1751532201899,0.02,2599.6,2599.5,41.82663774]
[1751532202452,0.02,2599.6,2599.5,38.7577463]
[1751532203061,0.02,2599.6,2599.5,41.82786062]
[1751532203302,0.02,2599.6,2599.5,38.7577463]
[1751532203503,0.02,2599.6,2599.5,29.0997463]
[1751532203690,0.02,2599.6,2599.5,38.7577463]
[1751532206775,0.0029538,2599.6,2599.5,38.7577463]
[1751532208282,0.0029538,2599.6,2599.5,42.59218497]
[1751532208482,0.0029538,2599.6,2599.5,38.7577463]
[1751532209380,0.0029538,2599.6,2599.5,42.59218497]
[1751532213502,0.0029538,2599.6,2599.5,38.74529134]
[1751532213843,0.0029538,2599.6,2599.5,37.37329134]
[1751532213983,0.0029538,2599.6,2599.5,37.3857463]
[1751532214300,0.0029538,2599.6,2599.5,32.6657463]
[1751532214676,0.02,2599.7,2599.5,32.6657463]
[1751532214677,0.02,2599.7,2599.6,14.39674565]
[1751532214995,0.02,2599.7,2599.6,18.24563813]
[1751532216806,0.00286843,2599.7,2599.6,18.24563813]
[1751532217916,0.00286844,2599.8,2599.7,13.84659768]
[1751532218118,0.00286844,2599.8,2599.7,33.13192014]
[1751532218288,0.00286844,2599.8,2599.7,37.95185881]
[1751532218489,0.02,2600.0,2599.9,13.84630178]
[1751532218690,0.02,2600.0,2599.9,28.73173176]
[1751532218915,0.02,2600.0,2599.9,28.92373176]
[1751532219218,0.02,2600.2,2600.1,20.9654359]
[1751532219516,0.02,2600.2,2600.1,28.154551]
[1751532220517,0.02,2600.2,2600.1,25.07742998]
[1751532221026,0.02,2600.2,2600.1,17.958]
[1751532223527,0.02,2600.2,2600.1,18.25333992]
[1751532223716,0.02,2600.2,2600.1,21.58106751]
[1751532226843,0.02,2600.2,2600.1,13.81506751]
[1751532227007,0.8422,2600.2,2600.1,18.25333992]
[1751532228430,0.02,2600.2,2600.1,18.25333992]
[1751532239815,0.02,2600.2,2600.1,22.64934584]
[1751532240013,0.02,2600.3,2600.2,21.78838799]
[1751532240219,0.02,2600.3,2600.2,21.79142246]
[1751532241457,0.02,2600.4,2600.3,14.67831011]
[1751532241755,0.02,2600.7,2600.6,18.50202998]
[1751532241953,0.7913,2601.4,2601.2,17.11942998]
[1751532242122,0.7913,2601.4,2601.2,24.88342998]
[1751532242318,0.7913,2601.4,2601.2,17.956]
[1751532244223,0.7913,2601.4,2601.2,10.192]
[1751532244426,0.8315,2601.2,2601.1,7.764]
[1751532244636,0.8315,2601.2,2601.1,7.956]
[1751532245420,0.7948,2601.4,2601.1,7.956]
[1751532245624,0.7948,2601.4,2601.2,0.192]
[1751532246255,0.7948,2601.4,2601.2,10.68176055]
[1751532248229,0.02,2601.5,2601.3,0.7869]
[1751532248425,0.02,2601.5,2601.4,25.07342998]
[1751532249340,0.02,2601.5,2601.4,17.954]
[1751532249538,0.02,2601.5,2601.4,10.192]
[1751532249738,0.02,2601.5,2601.4,0.192]
[1751532255274,0.02,2601.5,2601.4,18.81867298]
[1751532256662,0.02,2601.5,2601.4,22.66275693]
[1751532256862,0.02,2601.5,2601.4,18.81867298]
[1751532260063,0.02,2601.5,2601.4,19.61817298]
[1751532260269,0.02,2601.5,2601.4,23.46225693]
[1751532260434,0.02,2601.5,2601.4,23.48225693]
[1751532261041,0.02,2601.7,2601.6,4.64068843]